[Event "Titled Tuesday Blitz May 24 Early 2022"]
[White "De Arruda, Leandro Formes"]
[Black "Suleymanli, Suleyman"]
[WhiteFideId "22722009"]
[BlackFideId "13416375"]
[WhiteElo "1852"]
[BlackElo "1598"]
[Result "0-1"]
[Round "01"]
[TimeControl "180+1"]
[Date "2022.05.25"]
[WhiteClock "0:00:06"]
[BlackClock "0:01:27"]

1. d4 {[%clk 0:02:40]}  d5 {[%clk 0:02:59]} 2. Nf3 {[%clk 0:02:40]}  Bf5 {[%clk 0:02:58]} 3. e3 {[%clk 0:02:41]}  e6 {[%clk 0:02:58]} 4. Bd3 {[%clk 0:02:42]}  Nf6 {[%clk 0:02:59]} 5. Nbd2 {[%clk 0:02:42]}  Bg6 {[%clk 0:02:58]} 6. O-O {[%clk 0:02:42]}  Bd6 {[%clk 0:02:58]} 7. Ne5 {[%clk 0:02:43]}  Nbd7 {[%clk 0:02:57]} 8. f4 {[%clk 0:02:42]}  c5 {[%clk 0:02:57]} 9. Bb5 {[%clk 0:02:38]}  a6 {[%clk 0:02:57]} 10. Bxd7+ {[%clk 0:02:37]}  Nxd7 {[%clk 0:02:58]} 11. c3 {[%clk 0:02:33]}  c4 {[%clk 0:02:56]} 12. Qf3 {[%clk 0:02:32]}  b5 {[%clk 0:02:55]} 13. g4 {[%clk 0:02:31]}  Bxe5 {[%clk 0:02:55]} 14. dxe5 {[%clk 0:02:29]}  Bd3 {[%clk 0:02:55]} 15. Re1 {[%clk 0:02:27]}  Nc5 {[%clk 0:02:56]} 16. Qh3 {[%clk 0:02:22]}  Be4 {[%clk 0:02:53]} 17. Nf3 {[%clk 0:02:17]}  Nd3 {[%clk 0:02:51]} 18. Rd1 {[%clk 0:02:14]}  Bxf3 {[%clk 0:02:50]} 19. Qxf3 {[%clk 0:02:14]}  Qb6 {[%clk 0:02:50]} 20. Kg2 {[%clk 0:02:08]}  O-O-O {[%clk 0:02:47]} 21. Rb1 {[%clk 0:02:02]}  f6 {[%clk 0:02:38]} 22. exf6 {[%clk 0:01:57]}  gxf6 {[%clk 0:02:39]} 23. Bd2 {[%clk 0:01:57]}  Rhg8 {[%clk 0:02:32]} 24. Be1 {[%clk 0:01:54]}  h5 {[%clk 0:02:30]} 25. h3 {[%clk 0:01:52]}  hxg4 {[%clk 0:02:27]} 26. hxg4 {[%clk 0:01:52]}  Rg6 {[%clk 0:02:24]} 27. f5 {[%clk 0:01:46]}  Ne5 {[%clk 0:02:19]} 28. Qe2 {[%clk 0:01:37]}  Rxg4+ {[%clk 0:02:17]} 29. Kf1 {[%clk 0:01:36]}  Rh8 {[%clk 0:02:13]} 30. Qf2 {[%clk 0:00:36]}  Rh1+ {[%clk 0:01:40]} 31. Ke2 {[%clk 0:00:36]}  Rhg1 {[%clk 0:01:30]} 32. Rd4 {[%clk 0:00:14]}  R4g2 {[%clk 0:01:27]} 33. Rbd1 {[%clk 0:00:10]}  Rxf2+ {[%clk 0:01:26]} 34. Bxf2 {[%clk 0:00:11]}  Rxd1 {[%clk 0:01:26]} 35. Kxd1 {[%clk 0:00:09]}  exf5 {[%clk 0:01:27]} 36. Rxd5 {[%clk 0:00:08]}  Qc6 {[%clk 0:01:27]} 37. Rd4 {[%clk 0:00:06]}  Qf3+ {[%clk 0:01:27]} 38. Ke1 {[%clk 0:00:06]}  Nd3+ {[%clk 0:01:27]} 0-1


[Site "https://www.chess.com"]

[Event "Titled Tuesday Blitz May 24 Early 2022"]
[White "De Souza, Cristiano Gomes"]
[Black "Tregubov, Pavel V."]
[WhiteFideId "2151758"]
[BlackFideId "4115341"]
[WhiteElo "2068"]
[BlackElo "2341"]
[Result "0-1"]
[Round "01"]
[TimeControl "180+1"]
[Date "2022.05.25"]
[WhiteClock "0:01:21"]
[BlackClock "0:01:09"]

1. d4 {[%clk 0:02:58]}  Nf6 {[%clk 0:02:59]} 2. c4 {[%clk 0:02:58]}  e6 {[%clk 0:03:00]} 3. Nf3 {[%clk 0:02:58]}  Bb4+ {[%clk 0:03:00]} 4. Bd2 {[%clk 0:02:58]}  Qe7 {[%clk 0:03:00]} 5. a3 {[%clk 0:02:58]}  Bxd2+ {[%clk 0:02:59]} 6. Qxd2 {[%clk 0:02:58]}  O-O {[%clk 0:02:56]} 7. Nc3 {[%clk 0:02:58]}  d5 {[%clk 0:02:56]} 8. e3 {[%clk 0:02:56]}  Rd8 {[%clk 0:02:54]} 9. Rc1 {[%clk 0:02:56]}  c6 {[%clk 0:02:52]} 10. Be2 {[%clk 0:02:55]}  dxc4 {[%clk 0:02:52]} 11. Bxc4 {[%clk 0:02:54]}  Nbd7 {[%clk 0:02:51]} 12. O-O {[%clk 0:02:53]}  e5 {[%clk 0:02:50]} 13. dxe5 {[%clk 0:02:46]}  Nxe5 {[%clk 0:02:47]} 14. Qe2 {[%clk 0:02:44]}  Bg4 {[%clk 0:02:45]} 15. Rfd1 {[%clk 0:02:44]}  Nfd7 {[%clk 0:02:27]} 16. Ba2 {[%clk 0:02:35]}  Qf6 {[%clk 0:02:21]} 17. Ne4 {[%clk 0:02:31]}  Nxf3+ {[%clk 0:01:55]} 18. gxf3 {[%clk 0:02:30]}  Qxf3 {[%clk 0:01:50]} 19. Qxf3 {[%clk 0:02:27]}  Bxf3 {[%clk 0:01:50]} 20. Nd6 {[%clk 0:02:27]}  Ne5 {[%clk 0:01:33]} 21. Rd4 {[%clk 0:02:21]}  Rd7 {[%clk 0:01:28]} 22. Rc2 {[%clk 0:02:10]}  Rad8 {[%clk 0:01:25]} 23. Rcd2 {[%clk 0:02:09]}  c5 {[%clk 0:01:25]} 24. Nxf7 {[%clk 0:01:46]}  cxd4 {[%clk 0:01:12]} 25. Nxd8+ {[%clk 0:01:38]}  Bd5 {[%clk 0:01:12]} 26. Bxd5+ {[%clk 0:01:34]}  Rxd5 {[%clk 0:01:11]} 27. Kg2 {[%clk 0:01:22]}  Rxd8 {[%clk 0:01:10]} 28. Rxd4 {[%clk 0:01:21]}  Rxd4 {[%clk 0:01:08]} 29. exd4 {[%clk 0:01:21]}  Nc4 {[%clk 0:01:09]} 0-1


[Site "https://www.chess.com"]

[Event "Titled Tuesday Blitz May 24 Early 2022"]
[White "Dimitrov, Atanas"]
[Black "Odegov, Artem"]
[WhiteFideId "2901315"]
[BlackFideId "34183644"]
[WhiteElo "2704"]
[BlackElo "2286"]
[Result "0-1"]
[Round "01"]
[TimeControl "180+1"]
[Date "2022.05.25"]
[WhiteClock "0:00:05"]
[BlackClock "0:00:09"]

1. Nf3 {[%clk 0:03:00]}  d5 {[%clk 0:02:57]} 2. c4 {[%clk 0:03:00]}  c6 {[%clk 0:02:57]} 3. b3 {[%clk 0:02:59]}  Nf6 {[%clk 0:02:55]} 4. Bb2 {[%clk 0:02:59]}  Bf5 {[%clk 0:02:56]} 5. e3 {[%clk 0:02:59]}  e6 {[%clk 0:02:55]} 6. Nc3 {[%clk 0:02:58]}  h6 {[%clk 0:02:55]} 7. Be2 {[%clk 0:02:58]}  Be7 {[%clk 0:02:54]} 8. O-O {[%clk 0:02:58]}  O-O {[%clk 0:02:53]} 9. h3 {[%clk 0:02:54]}  Nbd7 {[%clk 0:02:52]} 10. d4 {[%clk 0:02:54]}  Qc7 {[%clk 0:02:44]} 11. Rc1 {[%clk 0:02:51]}  Rad8 {[%clk 0:02:36]} 12. Nd2 {[%clk 0:02:43]}  Qb8 {[%clk 0:02:22]} 13. Bf3 {[%clk 0:02:36]}  b5 {[%clk 0:01:03]} 14. cxb5 {[%clk 0:02:02]}  cxb5 {[%clk 0:01:04]} 15. Ne2 {[%clk 0:02:01]}  Nb6 {[%clk 0:00:56]} 16. Ng3 {[%clk 0:02:00]}  Bd3 {[%clk 0:00:44]} 17. Be2 {[%clk 0:01:59]}  Bxe2 {[%clk 0:00:42]} 18. Qxe2 {[%clk 0:02:00]}  Bd6 {[%clk 0:00:41]} 19. f4 {[%clk 0:01:45]}  a6 {[%clk 0:00:33]} 20. Nh5 {[%clk 0:01:34]}  Nxh5 {[%clk 0:00:20]} 21. Qxh5 {[%clk 0:01:35]}  Nd7 {[%clk 0:00:20]} 22. Qf3 {[%clk 0:01:28]}  f5 {[%clk 0:00:16]} 23. Rc2 {[%clk 0:01:22]}  Rc8 {[%clk 0:00:14]} 24. Rfc1 {[%clk 0:01:21]}  Rxc2 {[%clk 0:00:13]} 25. Rxc2 {[%clk 0:01:22]}  Rc8 {[%clk 0:00:13]} 26. Qd1 {[%clk 0:01:16]}  Rxc2 {[%clk 0:00:12]} 27. Qxc2 {[%clk 0:01:17]}  Qc7 {[%clk 0:00:13]} 28. Qxc7 {[%clk 0:00:47]}  Bxc7 {[%clk 0:00:14]} 29. Kf2 {[%clk 0:00:48]}  Nf6 {[%clk 0:00:13]} 30. Ke2 {[%clk 0:00:47]}  g5 {[%clk 0:00:05]} 31. g3 {[%clk 0:00:46]}  g4 {[%clk 0:00:05]} 32. hxg4 {[%clk 0:00:43]}  Nxg4 {[%clk 0:00:03]} 33. Ba3 {[%clk 0:00:42]}  Nf6 {[%clk 0:00:03]} 34. Bb4 {[%clk 0:00:31]}  Kf7 {[%clk 0:00:02]} 35. a4 {[%clk 0:00:30]}  bxa4 {[%clk 0:00:02]} 36. bxa4 {[%clk 0:00:31]}  Ne8 {[%clk 0:00:02]} 37. Nb3 {[%clk 0:00:31]}  Bd6 {[%clk 0:00:02]} 38. Bc3 {[%clk 0:00:29]}  Nc7 {[%clk 0:00:02]} 39. Kf3 {[%clk 0:00:29]}  Na8 {[%clk 0:00:02]} 40. Ba5 {[%clk 0:00:29]}  Kf6 {[%clk 0:00:02]} 41. g4 {[%clk 0:00:28]}  Bc7 {[%clk 0:00:02]} 42. Bb4 {[%clk 0:00:27]}  Nb6 {[%clk 0:00:02]} 43. Nc5 {[%clk 0:00:28]}  Nc4 {[%clk 0:00:02]} 44. Nxa6 {[%clk 0:00:24]}  Bd8 {[%clk 0:00:02]} 45. Nc5 {[%clk 0:00:23]}  fxg4+ {[%clk 0:00:02]} 46. Kf2 {[%clk 0:00:18]}  h5 {[%clk 0:00:02]} 47. Nd7+ {[%clk 0:00:16]}  Kf5 {[%clk 0:00:02]} 48. Nc5 {[%clk 0:00:15]}  h4 {[%clk 0:00:02]} 49. Nb7 {[%clk 0:00:14]}  g3+ {[%clk 0:00:03]} 50. Kf3 {[%clk 0:00:14]}  Bc7 {[%clk 0:00:04]} 51. a5 {[%clk 0:00:14]}  Bb8 {[%clk 0:00:02]} 52. a6 {[%clk 0:00:14]}  Ba7 {[%clk 0:00:03]} 53. Bc5 {[%clk 0:00:12]}  Nd2+ {[%clk 0:00:03]} 54. Kg2 {[%clk 0:00:08]}  Kg4 {[%clk 0:00:03]} 55. Bxa7 {[%clk 0:00:04]}  h3+ {[%clk 0:00:03]} 56. Kg1 {[%clk 0:00:05]}  Nf3+ {[%clk 0:00:04]} 57. Kf1 {[%clk 0:00:04]}  g2+ {[%clk 0:00:04]} 58. Ke2 {[%clk 0:00:04]}  g1=Q {[%clk 0:00:05]} 59. Kd3 {[%clk 0:00:05]}  Qd1+ {[%clk 0:00:05]} 60. Kc3 {[%clk 0:00:06]}  Qd2+ {[%clk 0:00:06]} 61. Kb3 {[%clk 0:00:06]}  Qxe3+ {[%clk 0:00:07]} 62. Ka4 {[%clk 0:00:07]}  Qe2 {[%clk 0:00:06]} 63. Bc5 {[%clk 0:00:08]}  Qa2+ {[%clk 0:00:06]} 64. Kb5 {[%clk 0:00:08]}  Qc4+ {[%clk 0:00:06]} 65. Kb6 {[%clk 0:00:08]}  Nxd4 {[%clk 0:00:06]} 66. a7 {[%clk 0:00:08]}  Qb5+ {[%clk 0:00:06]} 67. Kc7 {[%clk 0:00:07]}  Qc6+ {[%clk 0:00:06]} 68. Kb8 {[%clk 0:00:06]}  Qe8+ {[%clk 0:00:07]} 69. Kc7 {[%clk 0:00:07]}  Nb5+ {[%clk 0:00:07]} 70. Kb6 {[%clk 0:00:07]}  Nxa7 {[%clk 0:00:07]} 71. Kxa7 {[%clk 0:00:08]}  h2 {[%clk 0:00:07]} 72. Nd6 {[%clk 0:00:08]}  Qd7+ {[%clk 0:00:07]} 73. Kb6 {[%clk 0:00:07]}  h1=Q {[%clk 0:00:08]} 74. Nc4 {[%clk 0:00:05]}  Qb1+ {[%clk 0:00:09]} 0-1


[Site "https://www.chess.com"]

[Event "Titled Tuesday Blitz May 24 Early 2022"]
[White "Domingo Nunez, Ruben"]
[Black "Valle Maytin, Luis Enrique"]
[WhiteFideId "22245570"]
[BlackFideId "3503666"]
[WhiteElo "2376"]
[BlackElo "2257"]
[Result "1-0"]
[Round "01"]
[TimeControl "180+1"]
[Date "2022.05.25"]
[WhiteClock "0:00:07"]
[BlackClock "0:00:14"]

1. Nf3 {[%clk 0:02:56]}  Nf6 {[%clk 0:02:46]} 2. c4 {[%clk 0:02:55]}  c5 {[%clk 0:02:44]} 3. g3 {[%clk 0:02:54]}  Nc6 {[%clk 0:02:37]} 4. Bg2 {[%clk 0:02:53]}  g6 {[%clk 0:02:38]} 5. O-O {[%clk 0:02:53]}  Bg7 {[%clk 0:02:37]} 6. d4 {[%clk 0:02:54]}  cxd4 {[%clk 0:02:37]} 7. Nxd4 {[%clk 0:02:55]}  O-O {[%clk 0:02:37]} 8. Nc3 {[%clk 0:02:54]}  a6 {[%clk 0:02:35]} 9. Bg5 {[%clk 0:02:48]}  Qb6 {[%clk 0:02:00]} 10. Nb3 {[%clk 0:02:41]}  d6 {[%clk 0:01:55]} 11. Bxf6 {[%clk 0:02:19]}  exf6 {[%clk 0:01:42]} 12. Qxd6 {[%clk 0:02:17]}  Rd8 {[%clk 0:01:41]} 13. Nd5 {[%clk 0:02:11]}  Qxf2+ {[%clk 0:01:35]} 14. Rxf2 {[%clk 0:02:08]}  Rxd6 {[%clk 0:01:35]} 15. c5 {[%clk 0:01:36]}  Rd8 {[%clk 0:01:28]} 16. Nb6 {[%clk 0:01:01]}  Rb8 {[%clk 0:01:23]} 17. Bxc6 {[%clk 0:01:01]}  bxc6 {[%clk 0:01:21]} 18. Na5 {[%clk 0:01:02]}  Bd7 {[%clk 0:01:06]} 19. Rd1 {[%clk 0:00:56]}  Be8 {[%clk 0:01:06]} 20. Rff1 {[%clk 0:00:52]}  f5 {[%clk 0:01:05]} 21. b4 {[%clk 0:00:47]}  Bc3 {[%clk 0:00:59]} 22. a3 {[%clk 0:00:47]}  Bb2 {[%clk 0:00:56]} 23. Nac4 {[%clk 0:00:40]}  Bd4+ {[%clk 0:00:49]} 24. e3 {[%clk 0:00:40]}  Bf6 {[%clk 0:00:42]} 25. Rd6 {[%clk 0:00:39]}  Be7 {[%clk 0:00:41]} 26. Rd4 {[%clk 0:00:36]}  Bf6 {[%clk 0:00:39]} 27. Rdd1 {[%clk 0:00:32]}  Kf8 {[%clk 0:00:31]} 28. Kf2 {[%clk 0:00:29]}  Ke7 {[%clk 0:00:30]} 29. Kf3 {[%clk 0:00:29]}  Bd7 {[%clk 0:00:27]} 30. Rd6 {[%clk 0:00:27]}  Be6 {[%clk 0:00:20]} 31. Rxc6 {[%clk 0:00:22]}  Rd3 {[%clk 0:00:20]} 32. Rc7+ {[%clk 0:00:19]}  Kf8 {[%clk 0:00:20]} 33. Nd6 {[%clk 0:00:14]}  Bg5 {[%clk 0:00:17]} 34. Nd7+ {[%clk 0:00:09]}  Bxd7 {[%clk 0:00:15]} 35. Rxd7 {[%clk 0:00:10]}  Rxe3+ {[%clk 0:00:15]} 36. Kf2 {[%clk 0:00:10]}  Rxa3 {[%clk 0:00:16]} 37. Rxf7+ {[%clk 0:00:10]}  Kg8 {[%clk 0:00:16]} 38. Re1 {[%clk 0:00:11]}  Ra2+ {[%clk 0:00:15]} 39. Kf1 {[%clk 0:00:11]}  Ra4 {[%clk 0:00:15]} 40. h4 {[%clk 0:00:07]}  Bd8 {[%clk 0:00:14]} 41. Re8# {[%clk 0:00:07]} 1-0


[Site "https://www.chess.com"]

[Event "Titled Tuesday Blitz May 24 Early 2022"]
[White "Donchenko, Alexander"]
[Black "Manukian, Artak"]
[WhiteFideId "24603295"]
[BlackFideId "13301373"]
[WhiteElo "2572"]
[BlackElo "2500"]
[Result "1-0"]
[Round "01"]
[TimeControl "180+1"]
[Date "2022.05.24"]
[WhiteClock "0:01:37"]
[BlackClock "0:00:05"]

1. d4 {[%clk 0:03:00]}  d5 {[%clk 0:02:59]} 2. Nf3 {[%clk 0:03:00]}  Nf6 {[%clk 0:02:58]} 3. Bf4 {[%clk 0:03:00]}  e6 {[%clk 0:02:57]} 4. e3 {[%clk 0:03:01]}  c5 {[%clk 0:02:57]} 5. c3 {[%clk 0:03:00]}  Nc6 {[%clk 0:02:56]} 6. Nbd2 {[%clk 0:02:58]}  Qb6 {[%clk 0:02:56]} 7. Qb3 {[%clk 0:02:56]}  c4 {[%clk 0:02:55]} 8. Qc2 {[%clk 0:02:56]}  Be7 {[%clk 0:02:53]} 9. Be2 {[%clk 0:02:56]}  O-O {[%clk 0:02:53]} 10. O-O {[%clk 0:02:56]}  Bd7 {[%clk 0:02:51]} 11. h3 {[%clk 0:02:51]}  h6 {[%clk 0:02:49]} 12. b3 {[%clk 0:02:51]}  cxb3 {[%clk 0:02:47]} 13. axb3 {[%clk 0:02:52]}  Rfc8 {[%clk 0:02:46]} 14. Rfc1 {[%clk 0:02:51]}  a6 {[%clk 0:02:40]} 15. c4 {[%clk 0:02:50]}  Nb4 {[%clk 0:02:39]} 16. Qb2 {[%clk 0:02:47]}  Qd8 {[%clk 0:02:34]} 17. Ne5 {[%clk 0:02:45]}  Be8 {[%clk 0:02:28]} 18. c5 {[%clk 0:02:42]}  Nc6 {[%clk 0:02:14]} 19. Ndf3 {[%clk 0:02:41]}  Nxe5 {[%clk 0:02:14]} 20. Nxe5 {[%clk 0:02:41]}  Nd7 {[%clk 0:02:14]} 21. Nf3 {[%clk 0:02:39]}  Nf8 {[%clk 0:01:50]} 22. b4 {[%clk 0:02:39]}  Ng6 {[%clk 0:01:44]} 23. Bg3 {[%clk 0:02:39]}  Bb5 {[%clk 0:01:40]} 24. Bd1 {[%clk 0:02:31]}  Bf6 {[%clk 0:01:28]} 25. Bc2 {[%clk 0:02:30]}  Ne7 {[%clk 0:01:24]} 26. Ne5 {[%clk 0:02:16]}  Nc6 {[%clk 0:01:23]} 27. Nxc6 {[%clk 0:02:17]}  bxc6 {[%clk 0:01:12]} 28. Qc3 {[%clk 0:02:17]}  Qd7 {[%clk 0:01:06]} 29. Bd3 {[%clk 0:02:16]}  Qb7 {[%clk 0:01:00]} 30. Rcb1 {[%clk 0:02:13]}  Bd8 {[%clk 0:00:48]} 31. Ra3 {[%clk 0:02:12]}  Bc7 {[%clk 0:00:47]} 32. Bxc7 {[%clk 0:02:10]}  Rxc7 {[%clk 0:00:42]} 33. Bxb5 {[%clk 0:02:08]}  cxb5 {[%clk 0:00:38]} 34. Rba1 {[%clk 0:02:07]}  Rc6 {[%clk 0:00:37]} 35. Qd3 {[%clk 0:02:04]}  g6 {[%clk 0:00:30]} 36. e4 {[%clk 0:02:04]}  Qd7 {[%clk 0:00:23]} 37. Qe3 {[%clk 0:02:00]}  dxe4 {[%clk 0:00:19]} 38. Qxe4 {[%clk 0:02:00]}  Qd5 {[%clk 0:00:20]} 39. Qxd5 {[%clk 0:02:00]}  exd5 {[%clk 0:00:21]} 40. Ra5 {[%clk 0:02:00]}  Re6 {[%clk 0:00:17]} 41. Rxb5 {[%clk 0:01:59]}  Re4 {[%clk 0:00:16]} 42. Rb7 {[%clk 0:01:53]}  Rxd4 {[%clk 0:00:16]} 43. Re1 {[%clk 0:01:53]}  Rc4 {[%clk 0:00:15]} 44. Ree7 {[%clk 0:01:52]}  a5 {[%clk 0:00:15]} 45. bxa5 {[%clk 0:01:49]}  Rxc5 {[%clk 0:00:14]} 46. Rxf7 {[%clk 0:01:48]}  Rcxa5 {[%clk 0:00:15]} 47. Rg7+ {[%clk 0:01:48]}  Kf8 {[%clk 0:00:15]} 48. Rh7 {[%clk 0:01:49]}  Kg8 {[%clk 0:00:15]} 49. Rxh6 {[%clk 0:01:48]}  R5a6 {[%clk 0:00:14]} 50. Rhh7 {[%clk 0:01:48]}  Rd6 {[%clk 0:00:13]} 51. Rbd7 {[%clk 0:01:42]}  Rxd7 {[%clk 0:00:12]} 52. Rxd7 {[%clk 0:01:43]}  Ra5 {[%clk 0:00:12]} 53. Kh2 {[%clk 0:01:43]}  Ra2 {[%clk 0:00:10]} 54. Kg3 {[%clk 0:01:42]}  Rd2 {[%clk 0:00:10]} 55. f4 {[%clk 0:01:40]}  Kf8 {[%clk 0:00:09]} 56. Kf3 {[%clk 0:01:40]}  Kg8 {[%clk 0:00:07]} 57. g3 {[%clk 0:01:40]}  d4 {[%clk 0:00:06]} 58. h4 {[%clk 0:01:38]}  Kf8 {[%clk 0:00:05]} 59. Kg4 {[%clk 0:01:38]}  Kg8 {[%clk 0:00:05]} 60. Kg5 {[%clk 0:01:37]}  Rg2 {[%clk 0:00:05]} 61. g4 {[%clk 0:01:37]} 1-0


[Site "https://www.chess.com"]

[Event "Titled Tuesday Blitz May 24 Early 2022"]
[White "Drygalov, Sergey"]
[Black "Dobre, Claudiu-Cristian"]
[WhiteFideId "24171743"]
[BlackFideId "1211854"]
[WhiteElo "2514"]
[BlackElo "2207"]
[Result "1-0"]
[Round "01"]
[TimeControl "180+1"]
[Date "2022.05.24"]
[WhiteClock "0:00:18"]
[BlackClock "0:00:02"]

1. d4 {[%clk 0:02:59]}  d5 {[%clk 0:02:59]} 2. c4 {[%clk 0:02:59]}  c6 {[%clk 0:02:59]} 3. Nf3 {[%clk 0:02:56]}  Nf6 {[%clk 0:02:59]} 4. Nc3 {[%clk 0:02:51]}  e6 {[%clk 0:02:59]} 5. e3 {[%clk 0:02:51]}  Nbd7 {[%clk 0:02:58]} 6. Qc2 {[%clk 0:02:51]}  Bd6 {[%clk 0:02:57]} 7. Bd3 {[%clk 0:02:51]}  O-O {[%clk 0:02:55]} 8. O-O {[%clk 0:02:51]}  dxc4 {[%clk 0:02:53]} 9. Bxc4 {[%clk 0:02:52]}  e5 {[%clk 0:02:54]} 10. h3 {[%clk 0:02:52]}  Qe7 {[%clk 0:02:48]} 11. a3 {[%clk 0:02:52]}  b6 {[%clk 0:02:32]} 12. Bd2 {[%clk 0:02:52]}  Bb7 {[%clk 0:02:29]} 13. Rfe1 {[%clk 0:02:52]}  Rad8 {[%clk 0:02:11]} 14. e4 {[%clk 0:02:48]}  Bb8 {[%clk 0:02:05]} 15. d5 {[%clk 0:02:44]}  b5 {[%clk 0:01:33]} 16. dxc6 {[%clk 0:02:39]}  bxc4 {[%clk 0:01:32]} 17. cxb7 {[%clk 0:02:39]}  Nb6 {[%clk 0:01:32]} 18. Bg5 {[%clk 0:02:37]}  h6 {[%clk 0:01:31]} 19. Bxf6 {[%clk 0:02:34]}  Qxf6 {[%clk 0:01:31]} 20. a4 {[%clk 0:02:34]}  a5 {[%clk 0:01:29]} 21. Rad1 {[%clk 0:02:34]}  Qc6 {[%clk 0:01:28]} 22. Nd5 {[%clk 0:02:32]}  Qxb7 {[%clk 0:01:25]} 23. Nxb6 {[%clk 0:02:25]}  Qxb6 {[%clk 0:01:24]} 24. Qxc4 {[%clk 0:02:25]}  Qxb2 {[%clk 0:01:23]} 25. Rb1 {[%clk 0:01:50]}  Qa3 {[%clk 0:01:23]} 26. Rb7 {[%clk 0:01:48]}  Rc8 {[%clk 0:00:50]} 27. Qb5 {[%clk 0:01:46]}  Rc5 {[%clk 0:00:49]} 28. Qd7 {[%clk 0:01:07]}  Rc4 {[%clk 0:00:44]} 29. Reb1 {[%clk 0:00:39]}  Bd6 {[%clk 0:00:28]} 30. Nh4 {[%clk 0:00:21]}  Rc1+ {[%clk 0:00:22]} 31. Kh2 {[%clk 0:00:22]}  Rxb1 {[%clk 0:00:22]} 32. Rxb1 {[%clk 0:00:22]}  g6 {[%clk 0:00:18]} 33. Rb7 {[%clk 0:00:20]}  Kg7 {[%clk 0:00:17]} 34. Qe6 {[%clk 0:00:19]}  g5 {[%clk 0:00:02]} 35. Nf5+ {[%clk 0:00:18]} 1-0


[Site "https://www.chess.com"]

[Event "Titled Tuesday Blitz May 24 Early 2022"]
[White "Durarbayli, Vasif"]
[Black "Tomaszewski, Kacper"]
[WhiteFideId "13402935"]
[BlackFideId "1127373"]
[WhiteElo "2528"]
[BlackElo "2153"]
[Result "1-0"]
[Round "01"]
[TimeControl "180+1"]
[Date "2022.05.25"]
[WhiteClock "0:00:11"]
[BlackClock "0:00:03"]

1. d4 {[%clk 0:03:00]}  d5 {[%clk 0:02:59]} 2. c4 {[%clk 0:02:59]}  e6 {[%clk 0:02:59]} 3. Nc3 {[%clk 0:02:59]}  Nf6 {[%clk 0:02:59]} 4. cxd5 {[%clk 0:02:58]}  Nxd5 {[%clk 0:03:00]} 5. e4 {[%clk 0:02:55]}  Nxc3 {[%clk 0:02:59]} 6. bxc3 {[%clk 0:02:56]}  c5 {[%clk 0:02:59]} 7. Rb1 {[%clk 0:02:55]}  Be7 {[%clk 0:02:56]} 8. Nf3 {[%clk 0:02:54]}  O-O {[%clk 0:02:55]} 9. Bb5 {[%clk 0:02:36]}  a6 {[%clk 0:02:54]} 10. Be2 {[%clk 0:02:36]}  Qc7 {[%clk 0:02:53]} 11. O-O {[%clk 0:02:35]}  Rd8 {[%clk 0:02:47]} 12. Be3 {[%clk 0:02:34]}  Nc6 {[%clk 0:02:44]} 13. a4 {[%clk 0:02:16]}  cxd4 {[%clk 0:02:40]} 14. cxd4 {[%clk 0:02:17]}  a5 {[%clk 0:02:30]} 15. Qc1 {[%clk 0:02:13]}  Qd6 {[%clk 0:01:53]} 16. Rd1 {[%clk 0:01:48]}  Nb4 {[%clk 0:01:47]} 17. Bb5 {[%clk 0:01:32]}  Bd7 {[%clk 0:01:41]} 18. Bf4 {[%clk 0:01:32]}  e5 {[%clk 0:01:16]} 19. dxe5 {[%clk 0:01:01]}  Qe6 {[%clk 0:01:14]} 20. Nd4 {[%clk 0:01:01]}  Qg4 {[%clk 0:01:06]} 21. h3 {[%clk 0:01:00]}  Qh5 {[%clk 0:00:46]} 22. Bxd7 {[%clk 0:00:55]}  Rxd7 {[%clk 0:00:45]} 23. Nf5 {[%clk 0:00:56]}  Rxd1+ {[%clk 0:00:39]} 24. Qxd1 {[%clk 0:00:56]}  Qxd1+ {[%clk 0:00:38]} 25. Rxd1 {[%clk 0:00:57]}  Bf8 {[%clk 0:00:38]} 26. Nd6 {[%clk 0:00:56]}  b6 {[%clk 0:00:33]} 27. Be3 {[%clk 0:00:56]}  Rb8 {[%clk 0:00:18]} 28. f4 {[%clk 0:00:53]}  Na2 {[%clk 0:00:16]} 29. Rd3 {[%clk 0:00:49]}  Nb4 {[%clk 0:00:16]} 30. Rc3 {[%clk 0:00:49]}  f6 {[%clk 0:00:13]} 31. Nc4 {[%clk 0:00:35]}  fxe5 {[%clk 0:00:13]} 32. Nxe5 {[%clk 0:00:36]}  b5 {[%clk 0:00:13]} 33. Nd7 {[%clk 0:00:35]}  Rb7 {[%clk 0:00:12]} 34. Nxf8 {[%clk 0:00:33]}  Kxf8 {[%clk 0:00:11]} 35. axb5 {[%clk 0:00:29]}  Rxb5 {[%clk 0:00:12]} 36. Kf2 {[%clk 0:00:29]}  Kf7 {[%clk 0:00:12]} 37. Kf3 {[%clk 0:00:29]}  h5 {[%clk 0:00:12]} 38. Rc7+ {[%clk 0:00:25]}  Kg6 {[%clk 0:00:11]} 39. f5+ {[%clk 0:00:25]}  Kh7 {[%clk 0:00:11]} 40. Bd4 {[%clk 0:00:23]}  a4 {[%clk 0:00:05]} 41. Rxg7+ {[%clk 0:00:22]}  Kh6 {[%clk 0:00:05]} 42. g4 {[%clk 0:00:21]}  hxg4+ {[%clk 0:00:04]} 43. hxg4 {[%clk 0:00:22]}  Nc2 {[%clk 0:00:04]} 44. g5+ {[%clk 0:00:10]}  Kh5 {[%clk 0:00:03]} 45. Kf4 {[%clk 0:00:11]} 1-0


[Site "https://www.chess.com"]

[Event "Titled Tuesday Blitz May 24 Early 2022"]
[White "Ehlvest, Jaan"]
[Black "Dahlgren, James Allen"]
[WhiteFideId "4500016"]
[BlackFideId "22256873"]
[WhiteElo "2505"]
[BlackElo "2064"]
[Result "1-0"]
[Round "01"]
[TimeControl "180+1"]
[Date "2022.05.25"]
[WhiteClock "0:01:19"]
[BlackClock "0:00:27"]

1. e4 {[%clk 0:02:56]}  e6 {[%clk 0:02:57]} 2. Nf3 {[%clk 0:02:55]}  c5 {[%clk 0:02:58]} 3. c4 {[%clk 0:02:54]}  Nf6 {[%clk 0:02:57]} 4. Nc3 {[%clk 0:02:53]}  d5 {[%clk 0:02:57]} 5. e5 {[%clk 0:02:51]}  d4 {[%clk 0:02:57]} 6. exf6 {[%clk 0:02:47]}  dxc3 {[%clk 0:02:58]} 7. bxc3 {[%clk 0:02:44]}  Qxf6 {[%clk 0:02:52]} 8. d4 {[%clk 0:02:44]}  cxd4 {[%clk 0:02:47]} 9. Bg5 {[%clk 0:02:44]}  Qg6 {[%clk 0:02:42]} 10. Bd3 {[%clk 0:02:43]}  f5 {[%clk 0:02:36]} 11. O-O {[%clk 0:02:37]}  dxc3 {[%clk 0:02:31]} 12. Re1 {[%clk 0:02:27]}  Nc6 {[%clk 0:02:22]} 13. h4 {[%clk 0:02:18]}  Bd7 {[%clk 0:02:13]} 14. Qb3 {[%clk 0:02:13]}  Bd6 {[%clk 0:01:55]} 15. c5 {[%clk 0:02:07]}  Bxc5 {[%clk 0:01:50]} 16. Qxc3 {[%clk 0:02:06]}  Bb4 {[%clk 0:01:42]} 17. Qb3 {[%clk 0:02:05]}  Bxe1 {[%clk 0:01:42]} 18. Rxe1 {[%clk 0:02:05]}  O-O {[%clk 0:01:37]} 19. Qxb7 {[%clk 0:02:05]}  Qf7 {[%clk 0:01:22]} 20. Rd1 {[%clk 0:01:41]}  Rab8 {[%clk 0:01:13]} 21. Qc7 {[%clk 0:01:40]}  Rfc8 {[%clk 0:01:05]} 22. Qd6 {[%clk 0:01:40]}  h6 {[%clk 0:00:58]} 23. Ba6 {[%clk 0:01:26]}  hxg5 {[%clk 0:00:55]} 24. Bxc8 {[%clk 0:01:26]}  Rxc8 {[%clk 0:00:50]} 25. Nxg5 {[%clk 0:01:26]}  Qf8 {[%clk 0:00:39]} 26. Qxd7 {[%clk 0:01:24]}  e5 {[%clk 0:00:34]} 27. Qe6+ {[%clk 0:01:20]}  Kh8 {[%clk 0:00:27]} 28. Qg6 {[%clk 0:01:19]} 1-0


[Site "https://www.chess.com"]